Cogmind - Beta 9.2 *** ADVENTURER MODE // 2019.11.16 @ 10:27:55 Player: icehewn Result: Self-destructed Performance ------------- Evolutions (1) 500 Regions Visited (2) 400 Robots Destroyed (44) 220 Value Destroyed (898) 898 Prototype IDs (1) 20 Alien Tech Used (0) 0 Bonus (19) 19 TOTAL SCORE: 2057 Bonus ------- High Alert Combat Kills 19 Cogmind --------- Core Integrity 122/400 Matter 300/300 Energy 265/265 System Corruption 2% Temperature Cool (0) Movement Walking (150) Ox1 Location -9/Materials Parts ------- > --- POWER (1) -------- Improved Ion Engine > --- PROPULSION (2) --- Aluminum Leg Aluminum Leg > --- UTILITY (2) ------ Improved Heat Sink Small Storage Unit > --- WEAPON (4) ------- Beam Rifle Advanced Beam Cannon Heavy Assault Rifle Heavy Assault Rifle > --- INVENTORY (6) ---- Aluminum Leg Aluminum Leg Heat Sink Large Storage Unit Peak State ------------ > --- POWER ------------ Improved Ion Engine > --- PROPULSION ------- Aluminum Leg Aluminum Leg > --- UTILITY ---------- Improved Heat Sink Small Storage Unit > --- WEAPON ----------- Beam Rifle Advanced Beam Cannon Heavy Assault Rifle Heavy Assault Rifle > --- INVENTORY -------- Aluminum Leg Aluminum Leg Heat Sink Large Storage Unit [Rating: 17] Favorites ----------- Power Improved Ion Engine Engine Improved Ion Engine Propulsion Aluminum Leg Leg Aluminum Leg Utility Small Storage Unit Device Sensor Array Storage Small Storage Unit Weapon Mini Grenade Launcher Energy Gun Small Laser Energy Cannon Advanced Beam Cannon Ballistic Gun Heavy Assault Rifle Launcher Mini Grenade Launcher Build | -11 -10 -9 ------- Run | Scr Mat Mat Slots Evolved 2 | . . 2 Power . | . . . Propulsion . | . . . Utility . | . . . Weapon 2 | . . 2 Parts Attached 35 | 5 8 22 Power 5 | 1 1 3 Engine 5 | 1 1 3 Core . | . . . Reactor . | . . . Propulsion 7 | 2 2 3 Treads . | . . . Leg 7 | 2 2 3 Wheel . | . . . Hover . | . . . Flight . | . . . Utility 4 | 1 1 2 Device 3 | . 1 2 Storage 1 | 1 . . Processor . | . . . Hackware . | . . . Protection . | . . . Artifact . | . . . Weapon 19 | 1 4 14 Energy Gun 3 | . . 3 Energy Cannon 2 | . . 2 Ballistic Gun 7 | 1 . 6 Ballistic Cannon . | . . . Launcher 7 | . 4 3 Special Weapon . | . . . Impact Weapon . | . . . Slashing Weapon . | . . . Piercing Weapon . | . . . Special Melee Weapon . | . . . Unidentified Prototypes 1 | . . 1 Parts Lost 6 | . 3 3 Power 2 | . 2 . Propulsion . | . . . Utility . | . . . Weapon 4 | . 1 3 Highest Loss Streak 2 | . 1 2 Average Slot Usage (%) 88 | . 91 86 Engine 8 | . 9 7 Leg 23 | . 28 20 Device 10 | . 11 9 Storage 12 | . 14 11 Energy Gun 3 | . . 6 Energy Cannon 2 | . . 4 Ballistic Gun 10 | . 7 11 Launcher 16 | . 18 15 Naked Turns . | . . . Heaviest Build 25 | 9 13 25 Greatest Support 23 | 20 20 23 Greatest Overweight (x) 4 | . . 4 Average Overweight (x) . | . . . Largest Inventory Capacity 6 | 6 6 6 Average Capacity 5 | 5 6 6 Most Carried 6 | . 6 6 Average Carried 3 | . 2 3 Final Capacity 6 | 6 6 6 Final Carried 6 | . 6 4 Class Distribution -------------------- 47% | Mutant 28% | Scavenger-Gunner 19% | Skirmisher 5% | Scavenger-Mutant Dominant Class ---------------- Mutant | -10/Materials Scavenger-Gunner | -9/Materials Resources | -11 -10 -9 ----------- Run | Scr Mat Mat Matter Collected 969 | 189 161 619 Remotely . | . . . Salvage Created 981 | . 315 666 Parts 76 | . 18 58 Haulers Intercepted 1 | . 1 . Recyclers Shooed 1 | . 1 . Parts Field Recycled . | . . . Retrieved Matter . | . . . Parts Self-Destructed . | . . . Prevented . | . . . Kills | -11 -10 -9 ------- Run | Scr Mat Mat Combat Hostiles Destroyed 26 | . 9 17 Guns 12 | . 2 10 Cannons 6 | . . 6 AOE 8 | . 7 1 Classes Destroyed 10 | . 7 3 Worker 4 | . 1 3 Builder 3 | . . 3 Tunneler 1 | . 1 . Hauler 1 | . 1 . Recycler 2 | . 2 . Operator 1 | . . 1 Watcher 6 | . 3 3 Swarmer 12 | . 6 6 Grunt 10 | . 3 7 Sentry 4 | . . 4 Best Kill Streak 8 | . 8 8 Combat Bots Only 6 | . 5 6 Max Kills in Single Turn 6 | . 4 6 Gunslinging 2 | . . 2 Exploded 2 | . 2 1 Melee . | . . . Uniques/NPCs Destroyed . | . . . Combat | -11 -10 -9 -------- Run | Scr Mat Mat Damage Taken 1030 | . 246 784 Core 286 | . 8 278 Absorbed by Shields . | . . . Core Remaining (%) 98 | 100 96 . Volleys Fired 56 | . 19 37 Largest 4 | . 2 4 Hottest 170 | . 60 170 Shots Fired 150 | . 29 121 Gun 112 | . 12 100 Cannon 12 | . . 12 Launcher 26 | . 17 9 Special . | . . . Kinetic 86 | . 12 74 Thermal 38 | . . 38 Explosive 26 | . 17 9 Electromagnetic . | . . . Robot Hit Streak 16 | . 11 16 Robot Miss Streak 3 | . 1 3 Penetration Max . | . . . Secondary Targets 3 | . . 3 Max Gunslinging Chain 2 | . . 2 Shots Hit Robots 84 | . 13 71 Core Hits 72 | . 27 45 Critical Hits 2 | . . 2 Critical Kills 2 | . . 2 Critical Parts Destroyed . | . . . Melee Attacks . | . . . Impact . | . . . Slashing . | . . . Piercing . | . . . Sneak Attacks . | . . . Combat Hostiles . | . . . Follow-up Attacks . | . . . Damage Inflicted 2781 | . 1304 1477 Guns 791 | . 120 671 Cannons 205 | . . 205 Explosions 1760 | . 1179 581 Melee . | . . . Ramming 25 | . 5 20 Kinetic 573 | . 120 453 Thermal 456 | . . 456 Explosive 1727 | . 1179 548 Electromagnetic . | . . . Impact . | . . . Slashing . | . . . Piercing . | . . . Highest Corruption 2 | . . 2 Average Corruption 2 | . . 2 Corruption Purged . | . . . Effects 4 | . . 4 Message Errors 1 | . . 1 Heat Flow Errors 1 | . . 1 Data Loss (minor) 1 | . . 1 Weapon Failures 1 | . . 1 Overload Shots . | . . . Overflow Damage 126 | . 65 61 Projectiles . | . . . Explosions 126 | . 65 61 Melee . | . . . Knockbacks . | . . . Impact . | . . . Kinetic . | . . . Secondary . | . . . Self-Inflicted Damage 105 | . 76 29 Shots 5 | . 4 1 Rammed 13 | . . 13 Targets Rammed 14 | . 1 13 Kicked 1 | . 1 . Crushed . | . . . Highest Temperature 490 | . 14 490 Average Temperature 124 | . 7 133 Received Heat Transfer 396 | . 63 333 Effects 3 | . . 3 Shutdowns 1 | . . 1 Damage (minor) 2 | . . 2 Siege Activations . | . . . Robots Corrupted . | . . . Combat Hostiles . | . . . Parts Fried . | . . . Impact Corruptions . | . . . Robots Melted . | . . . Combat Hostiles . | . . . Parts Melted 4 | . . 4 Heat Transferred 954 | . . 954 Parts Sabotaged . | . . . Parts Stolen . | . . . Parts Stripped . | . . . Power Chain Reactions . | . . . Missiles Intercepted . | . . . Alert | -11 -10 -9 ------- Run | Scr Mat Mat Peak Influence 422 | . 141 422 Average Influence 119 | . 100 140 Maximum Alert Level 2 | . . 2 Low Security (%) 78 | 100 100 61 Level 1 20 | . . 36 Level 2 . | . . 1 Level 3 . | . . . Level 4 . | . . . Level 5 . | . . . High Security . | . . . Max Security . | . . . Squads Dispatched 1 | . . 1 Investigation . | . . . Extermination . | . . . Reinforcement 1 | . . 1 Assault . | . . . Garrison . | . . . Intercept . | . . . Construction Impeded . | . . . Haulers Reinforced . | . . . Stealth | -11 -10 -9 --------- Run | Scr Mat Mat Distress Signals 3 | . 1 2 Communications Jammed . | . . . Distress Signals . | . . . Times Spotted 38 | . 11 27 Peak Tracking Total 8 | . 7 8 Tactical Retreats 2 | . 1 1 Traps | -11 -10 -9 ------- Run | Scr Mat Mat Traps Triggered 5 | . . 5 Indirectly . | . . . Trap Hack Attempts . | . . . Triggered . | . . . Disarmed . | . . . Reprogrammed . | . . . Reused . | . . . Traps Extracted . | . . . Installed . | . . . Triggered . | . . . Machines | -11 -10 -9 ---------- Run | Scr Mat Mat Machines Disabled 8 | . 4 4 Max in Single Turn 2 | . 2 2 Machines Sabotaged . | . . . Garrisons Compromised . | . . . Overloaded Fab Kills . | . . . Fab Network Shutdowns . | . . . Hacking | -11 -10 -9 --------- Run | Scr Mat Mat Machines Accessed . | . . . Terminals . | . . . Fabricators . | . . . Repair Stations . | . . . Recycling Units . | . . . Scanalyzers . | . . . Garrison Access . | . . . Total Hacks . | . . . Successful . | . . . Failed . | . . . Catastrophic . | . . . Database Lockouts . | . . . Manual . | . . . Terminals . | . . . Fabricators . | . . . Repair Stations . | . . . Recycling Units . | . . . Scanalyzers . | . . . Garrison Access . | . . . Terminal Hacks . | . . . Fabricator Hacks . | . . . Repair Station Hacks . | . . . Recycling Unit Hacks . | . . . Scanalyzer . | . . . Garrison Access Hacks . | . . . Unauthorized Hacks . | . . . Terminals . | . . . Fabricators . | . . . Repair Stations . | . . . Recycling Units . | . . . Scanalyzers . | . . . Garrison Access . | . . . Data Cores Recovered . | . . . Used . | . . . Hacking Detections . | . . . Full Trace Events . | . . . Feedback Events . | . . . Feedback Blocked . | . . . Robot Schematics Acquired . | . . . Robots Built . | . . . Matter . | . . . Time . | . . . Total Robot Build Rating . | . . . Part Schematics Acquired . | . . . Parts Built . | . . . Matter . | . . . Time . | . . . Total Part Build Rating . | . . . Parts Repaired . | . . . Time . | . . . Parts Recycled . | . . . Recycled Matter . | . . . Retrieved Matter . | . . . Retrieved Components . | . . . Parts Scanalyzed . | . . . Part Schematics Acquired . | . . . Parts Damaged . | . . . Bothacking | -11 -10 -9 ------------ Run | Scr Mat Mat Used RIF Installer . | . . . Robots Hacked . | . . . Non-combat . | . . . Combat . | . . . Robot Hacks Applied . | . . . Relay Couplers Released . | . . . Robots Rewired . | . . . Allies Hacked . | . . . Hacks Repelled . | . . . Allies | -11 -10 -9 -------- Run | Scr Mat Mat Total Allies . | . . . Largest Group . | . . . Highest-Rated Group . | . . . Highest-Rated Ally . | . . . Total Orders . | . . . Ally Attacks . | . . . Total Damage . | . . . Kills . | . . . Allies Corrupted . | . . . Allies Melted . | . . . Intel | -11 -10 -9 ------- Run | Scr Mat Mat Robot Analysis Total . | . . . Derelict Logs Recovered . | . . . Drone Launches . | . . . Drone Recoveries . | . . . Exploration | -11 -10 -9 ------------- Run | Scr Mat Mat Turns Passed 1765 | 70 686 1009 Spaces Moved 1227 | 57 512 658 Core 71 | 7 . 64 Treads . | . . . Legs 1156 | 50 512 594 Wheels . | . . . Hover . | . . . Flight . | . . . Fastest Speed 50 | 50 120 100 Average Speed 123 | 111 120 127 Slowest Speed 250 | 120 120 250 Overloaded Moves . | . . . Propulsion Burnouts . | . . . Robots Hopped . | . . . Cave-ins Triggered . | . . . Exploration Rate (%) 45 | 4 85 47 Regions Visited 2 Branch Regions . Pre-discovered Areas . | . . . Known Exits Taken . | . . . Unknown Exits Taken 2 | 1 1 . Scrap Searched . | . . . Spaces Dug . | . . . Terrain Destroyed 155 | . 96 59 Melee . | . . . Projectile . | . . . AOE 155 | . 96 59 Actions | -11 -10 -9 --------- Run | Scr Mat Mat Total 1354 | 61 554 739 Wait 5 | . 5 . Move 1225 | 56 511 658 Hop . | . . . Pick Up 10 | . 7 3 Fast Attach 20 | 5 3 12 Attach 9 | . 3 6 Detach 2 | . 1 1 Swap 6 | . 2 4 Drop 7 | . 2 5 Fire 56 | . 19 37 Melee . | . . . Ram 11 | . . 11 Kick 3 | . 1 2 Crush . | . . . Escape Stasis . | . . . Rewire . | . . . Trap . | . . . Miscellaneous . | . . . Route ------- -11/Scrapyard -10/Materials (discovered 4 exits: [*Mat x3] / [*Min]) -9/Materials (discovered 1 exit: [*Mat]) History --------- Turn | Location | Event 5 | -11/Scrapyard | Discovered new exit (range 16) 71 | -11/Scrapyard | Entered Materials 195 | -10/Materials | Discovered new exit (range 10) 219 | -10/Materials | Discovered new exit (range 14) 308 | -10/Materials | Build established: Mutant 524 | -10/Materials | Discovered new exit (range 7) 745 | -10/Materials | Discovered new exit (range 9) 757 | -10/Materials | Entered another Materials area 757 | -9/Materials | Evolved 2 slots: Weapon x2 1044 | -9/Materials | Build established: Skirmisher 1196 | -9/Materials | Core integrity fell below 50% 1357 | -9/Materials | Discovered new exit (range 16) 1558 | -9/Materials | Build established: Scavenger-Gunner 1766 | -9/Materials | Self-destructed Last Messages --------------- 01537_ K-01 Serf cleans the Terminal. 01538_ R-06 Scavenger collects Lgt. Assault Rifle. 01540_ K-01 Serf cleans the Terminal. 01541_ Particle Gun melted. 01541_ G-47 Trooper destroyed. 01542_ R-06 Scavenger collects Lgt. Treads. 01543_ K-01 Serf collects debris. 01544_ Overheating: Beam Rifle damaged (-5). 01545_ G-34 Mercenary destroyed. 01546_ K-01 Serf collects debris. 01547_ Power failure, Imp. Ion Engine shutdown. 01550_ K-01 Serf collects debris. 01552_ Overheating: Imp. Ion Engine damaged (-6). 01557_ Acquired 35 matter. 01559_ Acquired 49 matter. 01560_ System corrupted: Heat flow error (+193). 01560_ Acquired 46 matter. 01570_ K-01 Serf collects debris. 01590_ Acquired 33 matter. 01592_ K-01 Serf collects debris. Map ----- +----------------------------------------------------+ | | | | | | | | | | | | | | | | | | | | | | | | | | | | | ?????????????????????????????????????????????????? | | ?????????????????????????????????????????????????? | | ?????????????????????????????????????????????????? | | ??????????????????########???????????????????????? | | ??????????????????# #???????????????????????? | | ??????????????????# ####????????????????????? | | ??????????????????# """## ????????????????????? | | ??????????????????# """## #????????????????????? | | ????????########### """?# #????????????????????? | | ????????# [ # ??# #????????????????????? | | ????????# ##+#+#### #########????????????# | | ????????# """ """ # @ # #????????????# | | ????????# """ """ + # """ +????????????# | | ????????# """ """ # = # """ #????????????# | | ????????# ### ####= !+ """ #????????????+ | | ????????# [ #?# #??# ==# #????????????# | | ????????# !#?# #??#[o #/ ! #????????????# | | ????????#+#####+###?# #?## ##############?????## | | ????????# #???# #???# #?# ####### ####### | | ?######## #???# #???# #?# =[ ! == | | ?# # #???# #???# #?# ! [ % T !*== | | ?# # ##### ##### #?# *=%! = != = | | ?# + #?# #######= =####### | | ?# ####+########+#########?????## ##?????## | | ?# ## #?# #???????????# #???????# | | ?# ## #?#! """ #???????????# #???????# | | ?######### """ #?# """ #???????????+ #???????# | | ?????????# """ !#?# """ #???????????# #???????# | | ?????????# """ #?# #???????????# #???????# | | ?????????# =#?# ! #???????????# #####???# | | ?????????########?########???????????# # # ###?# | | ?????????????????????????????????????# # #?# | | ?????????????###########?????????????# ######### | | ?????????????# #?????????????# | | ?????????????# #?????????????# | | ?????????????# """"""" #?????????????+ """ | +----------------------------------------------------+ Best States ------------- Heat Dissipation 42 Energy Generation 12 Energy Capacity 265 Matter Stores 300 Matter Capacity 300 Sight Range 16 Robot Scan Range 10 Terrain Scan Density 10 Resistance: KI 20 Resistance: TH 20 Resistance: EX 20 Resistance: EM 20 Resistance: I 20 Resistance: S 20 Resistance: P 20 Evasion (%) 40 Item Schematics ----------------- None Robot Schematics ------------------ None Fabricated ------------ Nothing Alien Tech Used ----------------- None Achievements -------------- None Challenges ------------ None Game ------ Seed AssemblyNeutralizingAirjet Manual? 0 Play Time 00:13:31 Cumulative 4.1 hours Start 2019.11.11 @ 19:30:12 End 2019.11.16 @ 10:27:55 Sessions 3 Manual Loads 0 Difficulty Adventurer Special Mode None Game No. 8 Rogue 0 Adventurer 8 Explorer 0 Win Type - Total 0 Types 0/0/0/0/0/0/0 Lore% 0 Gallery% 11 Achievement% 10 Wizard Run 0 Options --------- ASCII 0 Keyboard 1 Movement Arrows Keybinds 0 Fullscreen 2 Font 24/Terminus Map View 76x50 Tactical HUD 1 Map Filters NONE Filters NONE Steam 1 RUN: 4417a5f0-4e56-42bd-8a02-9a8a1f715257